[Event "NJSK 2022 Jeugd B"]
[Site "Almelo, Netherlands"]
[Date "2022.05.03"]
[Round "3.7"]
[White "De Heij, Mees"]
[Black "Smid, Jelle"]
[Result "0-1"]
[TimeControl "90min/40moves + 30min + 30sec/move"]
[WhiteElo "1622"]
[BlackElo "1450"]

1. e4 {[%clk 01:30:58]} {[%emt 00:00:02]} e6 {[%clk 01:30:54]} {[%emt
00:00:06]} 2. Nc3 {[%clk 01:31:16]} {[%emt 00:00:12]} d5 {[%clk 01:31:17]}
{[%emt 00:00:07]} 3. d4 {[%clk 01:31:29]} {[%emt 00:00:16]} Nf6 {[%clk
01:31:36]} {[%emt 00:00:11]} 4. e5 {[%clk 01:31:14]} {[%emt 00:00:46]} Nfd7
{[%clk 01:31:57]} {[%emt 00:00:09]} 5. Nf3 {[%clk 01:31:27]} {[%emt 00:00:16]}
c5 {[%clk 01:32:18]} {[%emt 00:00:10]} 6. Bf4 {[%clk 01:30:57]} {[%emt
00:01:00]} Nc6 {[%clk 01:32:27]} {[%emt 00:00:21]} 7. Bb5 {[%clk 01:19:14]}
{[%emt 00:12:13]} Qb6 {[%clk 01:31:51]} {[%emt 00:01:06]} 8. Bxc6 {[%clk
01:18:30]} {[%emt 00:01:14]} bxc6 {[%clk 01:32:07]} {[%emt 00:00:14]} 9. Rb1
{[%clk 01:17:17]} {[%emt 00:01:41]} Ba6 {[%clk 01:30:37]} {[%emt 00:02:02]} 10.
Be3 {[%clk 01:13:07]} {[%emt 00:04:40]} cxd4 {[%clk 01:30:23]} {[%emt
00:00:44]} 11. Nxd4 {[%clk 01:10:01]} {[%emt 00:03:36]} c5 {[%clk 01:30:30]}
{[%emt 00:00:23]} 12. Nb3 {[%clk 01:02:18]} {[%emt 00:08:13]} d4 {[%clk
01:30:36]} {[%emt 00:00:25]} 13. Qf3 {[%clk 00:58:39]} {[%emt 00:04:06]} Bb7
{[%clk 01:30:20]} {[%emt 00:00:48]} 14. Ne4 {[%clk 00:58:17]} {[%emt 00:00:51]}
dxe3 {[%clk 01:30:01]} {[%emt 00:00:50]} 15. Qxe3 {[%clk 00:56:56]} {[%emt
00:01:51]} Bxe4 {[%clk 01:29:27]} {[%emt 00:01:04]} 16. Qxe4 {[%clk 00:57:08]}
{[%emt 00:00:19]} Qb4+ {[%clk 01:29:49]} {[%emt 00:00:08]} 17. Qxb4 {[%clk
00:54:57]} {[%emt 00:02:41]} cxb4 {[%clk 01:30:11]} {[%emt 00:00:08]} 18. Nd4
{[%clk 00:55:12]} {[%emt 00:00:14]} Bc5 {[%clk 01:30:06]} {[%emt 00:00:35]} 19.
Nf3 {[%clk 00:55:25]} {[%emt 00:00:17]} O-O {[%clk 01:30:28]} {[%emt 00:00:09]}
20. O-O {[%clk 00:55:44]} {[%emt 00:00:11]} Rfd8 {[%clk 01:30:45]} {[%emt
00:00:13]} 21. Rfc1 {[%clk 00:55:08]} {[%emt 00:01:05]} Nb6 {[%clk 01:30:55]}
{[%emt 00:00:20]} 22. c3 {[%clk 00:55:10]} {[%emt 00:00:28]} bxc3 {[%clk
01:31:10]} {[%emt 00:00:16]} 23. Rxc3 {[%clk 00:54:56]} {[%emt 00:00:44]} Rac8
{[%clk 01:31:30]} {[%emt 00:00:10]} 24. g3 {[%clk 00:51:42]} {[%emt 00:03:43]}
Nd5 {[%clk 01:31:50]} {[%emt 00:00:10]} 25. Rcc1 {[%clk 00:51:00]} {[%emt
00:01:12]} Nb4 {[%clk 01:32:05]} {[%emt 00:00:15]} 26. a3 {[%clk 00:49:03]}
{[%emt 00:02:28]} Bxf2+ {[%clk 01:31:56]} {[%emt 00:00:38]} 27. Kg2 {[%clk
00:45:08]} {[%emt 00:04:25]} Rxc1 {[%clk 01:32:13]} {[%emt 00:00:13]} 28. Rxc1
{[%clk 00:45:35]} {[%emt 00:00:03]} Nd3 {[%clk 01:32:28]} {[%emt 00:00:14]} 29.
Rf1 {[%clk 00:32:22]} {[%emt 00:13:43]} Bb6 {[%clk 01:32:15]} {[%emt 00:00:45]}
30. b4 {[%clk 00:31:14]} {[%emt 00:01:38]} h6 {[%clk 01:32:32]} {[%emt
00:00:13]} 31. Rb1 {[%clk 00:29:58]} {[%emt 00:01:46]} Rd5 {[%clk 01:32:39]}
{[%emt 00:00:23]} 32. a4 {[%clk 00:29:40]} {[%emt 00:00:47]} Nxe5 {[%clk
01:33:00]} {[%emt 00:00:09]} 33. Nxe5 {[%clk 00:29:52]} {[%emt 00:00:19]} Rxe5
{[%clk 01:33:25]} {[%emt 00:00:05]} 34. Kf3 {[%clk 00:29:51]} {[%emt 00:00:30]}
Re3+ {[%clk 01:33:47]} {[%emt 00:00:08]} 35. Kf4 {[%clk 00:30:00]} {[%emt
00:00:21]} g6 {[%clk 01:33:32]} {[%emt 00:00:45]} 36. a5 {[%clk 00:30:05]}
{[%emt 00:00:25]} Bd4 {[%clk 01:33:55]} {[%emt 00:00:07]} 37. b5 {[%clk
00:30:08]} {[%emt 00:00:28]} 0-1

[Event "NJSK 2022 Jeugd B"]
[Site "Almelo, Netherlands"]
[Date "2022.05.03"]
[Round "3.8"]
[White "Bakija, Alan"]
[Black "Blom, Rens"]
[Result "1-0"]
[TimeControl "90min/40moves + 30min + 30sec/move"]
[WhiteElo "1868"]
[BlackElo "1699"]

1. c4 {[%clk 01:30:57]} {[%emt 00:00:02]} c5 {[%clk 01:30:55]} {[%emt
00:00:05]} 2. Nf3 {[%clk 01:31:23]} {[%emt 00:00:05]} Nc6 {[%clk 01:31:19]}
{[%emt 00:00:06]} 3. e3 {[%clk 01:31:49]} {[%emt 00:00:04]} e5 {[%clk
01:31:20]} {[%emt 00:00:29]} 4. Nc3 {[%clk 01:32:14]} {[%emt 00:00:05]} Nf6
{[%clk 01:31:45]} {[%emt 00:00:05]} 5. d4 {[%clk 01:32:27]} {[%emt 00:00:17]}
e4 {[%clk 01:32:06]} {[%emt 00:00:09]} 6. Ne5 {[%clk 01:30:53]} {[%emt
00:02:03]} g6 {[%clk 01:31:08]} {[%emt 00:01:28]} 7. Nxc6 {[%clk 01:27:40]}
{[%emt 00:03:44]} dxc6 {[%clk 01:31:24]} {[%emt 00:00:14]} 8. Be2 {[%clk
01:21:57]} {[%emt 00:06:13]} Bg7 {[%clk 01:27:47]} {[%emt 00:04:07]} 9. O-O
{[%clk 01:19:41]} {[%emt 00:02:46]} O-O {[%clk 01:24:32]} {[%emt 00:03:45]} 10.
dxc5 {[%clk 01:00:34]} {[%emt 00:19:37]} Qe7 {[%clk 01:11:21]} {[%emt
00:13:41]} 11. Rb1 {[%clk 01:00:12]} {[%emt 00:00:52]} Rd8 {[%clk 01:07:10]}
{[%emt 00:04:41]} 12. Qc2 {[%clk 00:54:24]} {[%emt 00:06:16]} a5 {[%clk
01:06:04]} {[%emt 00:01:37]} 13. Na4 {[%clk 00:51:29]} {[%emt 00:03:25]} Nd7
{[%clk 00:55:56]} {[%emt 00:10:38]} 14. Rd1 {[%clk 00:51:28]} {[%emt 00:00:30]}
Re8 {[%clk 00:56:08]} {[%emt 00:00:19]} 15. b3 {[%clk 00:45:29]} {[%emt
00:06:29]} Nxc5 {[%clk 00:43:12]} {[%emt 00:13:26]} 16. Ba3 {[%clk 00:39:31]}
{[%emt 00:06:28]} b6 {[%clk 00:35:38]} {[%emt 00:08:05]} 17. Nxb6 {[%clk
00:38:18]} {[%emt 00:01:42]} Rb8 {[%clk 00:35:43]} {[%emt 00:00:25]} 18. Na4
{[%clk 00:33:45]} {[%emt 00:05:03]} Rb4 {[%clk 00:35:27]} {[%emt 00:00:46]} 19.
Nxc5 {[%clk 00:34:07]} {[%emt 00:00:07]} Qxc5 {[%clk 00:35:45]} {[%emt
00:00:13]} 20. Qd2 {[%clk 00:33:15]} {[%emt 00:01:21]} Qe7 {[%clk 00:31:51]}
{[%emt 00:04:25]} 21. Bxb4 {[%clk 00:30:53]} {[%emt 00:02:53]} axb4 {[%clk
00:32:08]} {[%emt 00:00:12]} 22. Qd6 {[%clk 00:29:41]} {[%emt 00:01:42]} Qxd6
{[%clk 00:27:54]} {[%emt 00:04:44]} 23. Rxd6 {[%clk 00:30:06]} {[%emt
00:00:06]} c5 {[%clk 00:28:20]} {[%emt 00:00:03]} 24. Rbd1 {[%clk 00:29:29]}
{[%emt 00:01:06]} Bf8 {[%clk 00:25:20]} {[%emt 00:03:31]} 25. Rd8 {[%clk
00:27:49]} {[%emt 00:02:10]} Rxd8 {[%clk 00:25:42]} {[%emt 00:00:09]} 26. Rxd8
{[%clk 00:28:14]} {[%emt 00:00:05]} Be6 {[%clk 00:25:25]} {[%emt 00:00:47]} 27.
a4 {[%clk 00:27:21]} {[%emt 00:01:23]} bxa3 {[%clk 00:24:49]} {[%emt 00:01:05]}
28. Ra8 {[%clk 00:27:46]} {[%emt 00:00:05]} f5 {[%clk 00:23:40]} {[%emt
00:01:40]} 29. Rxa3 {[%clk 00:28:01]} {[%emt 00:00:14]} Kf7 {[%clk 00:23:30]}
{[%emt 00:00:39]} 30. Kf1 {[%clk 00:27:00]} {[%emt 00:01:31]} Bd7 {[%clk
00:22:42]} {[%emt 00:01:19]} 31. Bd1 {[%clk 00:25:28]} {[%emt 00:02:02]} Ke6
{[%clk 00:20:59]} {[%emt 00:02:13]} 32. Ra6+ {[%clk 00:24:12]} {[%emt
00:01:45]} Bd6 {[%clk 00:18:22]} {[%emt 00:03:08]} 33. f3 {[%clk 00:16:11]}
{[%emt 00:08:31]} exf3 {[%clk 00:13:13]} {[%emt 00:05:39]} 34. gxf3 {[%clk
00:15:46]} {[%emt 00:00:55]} f4 {[%clk 00:13:18]} {[%emt 00:00:25]} 35. exf4
{[%clk 00:13:02]} {[%emt 00:03:14]} Ke7 {[%clk 00:12:55]} {[%emt 00:00:53]} 36.
Ra5 {[%clk 00:12:32]} {[%emt 00:01:00]} Bh3+ {[%clk 00:10:32]} {[%emt
00:02:53]} 37. Kf2 {[%clk 00:10:53]} {[%emt 00:02:09]} Bc7 {[%clk 00:09:03]}
{[%emt 00:01:59]} 38. Ra7 {[%clk 00:11:13]} {[%emt 00:00:10]} Kd6 {[%clk
00:08:48]} {[%emt 00:00:45]} 39. Bc2 {[%clk 00:11:14]} {[%emt 00:00:28]} Be6
{[%clk 00:05:51]} {[%emt 00:03:29]} 40. Be4 {[%clk 00:10:18]} {[%emt 00:01:24]}
Bd7 {[%clk 00:03:15]} {[%emt 00:03:06]} 41. Kg3 {[%clk 00:09:16]} {[%emt
00:01:32]} Bb8 {[%clk 00:01:24]} {[%emt 00:02:22]} 42. Ra6+ {[%clk 00:05:29]}
{[%emt 00:04:17]} Ke7 {[%clk 00:01:41]} {[%emt 00:00:13]} 43. Ra8 {[%clk
00:05:51]} {[%emt 00:00:08]} Bd6 {[%clk 00:00:41]} {[%emt 00:01:30]} 44. h4
{[%clk 00:03:43]} {[%emt 00:02:37]} Kf6 {[%clk 00:27:39]} {[%emt 00:03:32]} 45.
Rd8 {[%clk 00:33:17]} {[%emt 00:00:56]} Ke7 {[%clk 00:24:36]} {[%emt 00:03:34]}
46. Rh8 {[%clk 00:33:40]} {[%emt 00:00:07]} Kf6 {[%clk 00:24:40]} {[%emt
00:00:26]} 47. Rxh7 {[%clk 00:31:18]} {[%emt 00:02:51]} Be8 {[%clk 00:23:17]}
{[%emt 00:01:53]} 48. Ra7 {[%clk 00:30:10]} {[%emt 00:01:38]} Bf7 {[%clk
00:22:01]} {[%emt 00:01:46]} 49. Bd5 {[%clk 00:28:36]} {[%emt 00:02:04]} Be8
{[%clk 00:20:35]} {[%emt 00:01:57]} 50. Ra6 {[%clk 00:28:47]} {[%emt 00:00:19]}
Ke7 {[%clk 00:20:45]} {[%emt 00:00:20]} 51. Kg4 {[%clk 00:29:08]} {[%emt
00:00:08]} Bd7+ {[%clk 00:19:39]} {[%emt 00:01:37]} 52. Kg5 {[%clk 00:29:23]}
{[%emt 00:00:15]} Be8 {[%clk 00:18:51]} {[%emt 00:01:18]} 53. Be4 {[%clk
00:29:35]} {[%emt 00:00:18]} Kd7 {[%clk 00:15:04]} {[%emt 00:04:18]} 54. Bc6+
{[%clk 00:28:07]} {[%emt 00:01:57]} 1-0

[Event "NJSK 2022 Jeugd B"]
[Site "Almelo, Netherlands"]
[Date "2022.05.03"]
[Round "3.9"]
[White "Knol, Daniel"]
[Black "Alvares, Thomas"]
[Result "0-1"]
[TimeControl "90min/40moves + 30min + 30sec/move"]
[WhiteElo "1685"]
[BlackElo "1789"]

1. e4 {[%clk 01:30:59]} e5 {[%clk 01:30:54]} {[%emt 00:00:06]} 2. Nf3 {[%clk
01:31:02]} {[%emt 00:00:27]} Nc6 {[%clk 01:31:18]} {[%emt 00:00:06]} 3. Bc4
{[%clk 01:31:28]} {[%emt 00:00:03]} Nf6 {[%clk 01:31:42]} {[%emt 00:00:06]} 4.
d3 {[%clk 01:31:53]} {[%emt 00:00:04]} Bc5 {[%clk 01:32:04]} {[%emt 00:00:09]}
5. c3 {[%clk 01:32:16]} {[%emt 00:00:07]} a6 {[%clk 01:32:27]} {[%emt
00:00:07]} 6. O-O {[%clk 01:32:38]} {[%emt 00:00:07]} d6 {[%clk 01:32:50]}
{[%emt 00:00:09]} 7. Re1 {[%clk 01:32:32]} {[%emt 00:00:36]} Ba7 {[%clk
01:32:59]} {[%emt 00:00:20]} 8. Be3 {[%clk 01:32:42]} {[%emt 00:00:20]} O-O
{[%clk 01:31:11]} {[%emt 00:02:18]} 9. Bxa7 {[%clk 01:33:09]} {[%emt 00:00:04]}
Rxa7 {[%clk 01:30:49]} {[%emt 00:00:52]} 10. Nbd2 {[%clk 01:12:51]} {[%emt
00:20:47]} b5 {[%clk 01:25:35]} {[%emt 00:05:44]} 11. Bb3 {[%clk 01:12:42]}
{[%emt 00:00:39]} Na5 {[%clk 01:25:24]} {[%emt 00:00:41]} 12. d4 {[%clk
01:07:26]} {[%emt 00:05:46]} Nxb3 {[%clk 01:18:54]} {[%emt 00:07:00]} 13. Nxb3
{[%clk 01:05:50]} {[%emt 00:02:06]} Qe7 {[%clk 01:15:45]} {[%emt 00:03:39]} 14.
Na5 {[%clk 01:01:39]} {[%emt 00:04:41]} Bd7 {[%clk 01:12:16]} {[%emt 00:03:58]}
15. d5 {[%clk 01:00:27]} {[%emt 00:01:42]} Nh5 {[%clk 00:58:46]} {[%emt
00:14:00]} 16. g3 {[%clk 00:47:48]} {[%emt 00:13:08]} g6 {[%clk 00:50:30]}
{[%emt 00:08:47]} 17. a4 {[%clk 00:31:41]} {[%emt 00:16:38]} Raa8 {[%clk
00:47:33]} {[%emt 00:03:26]} 18. axb5 {[%clk 00:30:18]} {[%emt 00:01:52]} axb5
{[%clk 00:47:53]} {[%emt 00:00:11]} 19. Nc6 {[%clk 00:27:35]} {[%emt 00:03:13]}
Qe8 {[%clk 00:44:31]} {[%emt 00:03:52]} 20. Nb4 {[%clk 00:21:24]} {[%emt
00:06:41]} f5 {[%clk 00:39:09]} {[%emt 00:05:52]} 21. exf5 {[%clk 00:17:13]}
{[%emt 00:04:41]} Rxa1 {[%clk 00:37:18]} {[%emt 00:02:20]} 22. Qxa1 {[%clk
00:17:40]} {[%emt 00:00:03]} gxf5 {[%clk 00:32:02]} {[%emt 00:05:46]} 23. Nh4
{[%clk 00:09:27]} {[%emt 00:08:43]} f4 {[%clk 00:27:46]} {[%emt 00:04:46]} 24.
Nd3 {[%clk 00:07:26]} {[%emt 00:02:31]} Qf7 {[%clk 00:27:10]} {[%emt 00:01:06]}
25. Qd1 {[%clk 00:06:10]} {[%emt 00:01:46]} fxg3 {[%clk 00:25:08]} {[%emt
00:02:32]} 26. hxg3 {[%clk 00:05:02]} {[%emt 00:01:38]} Nf6 {[%clk 00:24:40]}
{[%emt 00:00:57]} 27. Nb4 {[%clk 00:03:59]} {[%emt 00:01:34]} Ng4 {[%clk
00:19:55]} {[%emt 00:05:15]} 28. f3 {[%clk 00:04:14]} {[%emt 00:00:15]} Nf6
{[%clk 00:18:47]} {[%emt 00:01:38]} 29. Rf1 {[%clk 00:02:42]} {[%emt 00:02:02]}
Qg7 {[%clk 00:17:14]} {[%emt 00:02:03]} 30. Kh2 {[%clk 00:03:05]} {[%emt
00:00:08]} Kh8 {[%clk 00:16:33]} {[%emt 00:01:10]} 31. Rg1 {[%clk 00:03:14]}
{[%emt 00:00:21]} e4 {[%clk 00:12:56]} {[%emt 00:04:07]} 32. Kg2 {[%clk
00:01:22]} {[%emt 00:02:22]} exf3+ {[%clk 00:11:44]} {[%emt 00:01:42]} 33. Nxf3
{[%clk 00:01:32]} {[%emt 00:00:19]} Bg4 {[%clk 00:06:45]} {[%emt 00:05:28]} 34.
Rf1 {[%clk 00:01:36]} {[%emt 00:00:28]} Qh6 {[%clk 00:05:32]} {[%emt 00:01:43]}
35. Rh1 {[%clk 00:01:27]} {[%emt 00:00:39]} Qe3 {[%clk 00:04:57]} {[%emt
00:01:05]} 36. Nc2 {[%clk 00:01:21]} {[%emt 00:00:36]} Qe4 {[%clk 00:04:10]}
{[%emt 00:01:16]} 37. Rf1 {[%clk 00:01:00]} {[%emt 00:00:51]} Kg8 {[%clk
00:02:23]} {[%emt 00:02:17]} 38. Ncd4 {[%clk 00:00:57]} {[%emt 00:00:33]} Nxd5
{[%clk 00:01:46]} {[%emt 00:01:07]} 39. Qb3 {[%clk 00:00:57]} {[%emt 00:00:31]}
Kh8 {[%clk 00:01:20]} {[%emt 00:00:56]} 40. Rf2 {[%clk 00:00:32]} {[%emt
00:00:56]} Ne3+ {[%clk 00:01:15]} {[%emt 00:00:35]} 41. Kh2 {[%clk 00:30:08]}
{[%emt 00:00:54]} Bxf3 {[%clk 00:29:54]} {[%emt 00:01:51]} 42. Rxf3 {[%clk
00:30:37]} Rxf3 {[%clk 00:29:43]} {[%emt 00:00:41]} 43. Nxf3 {[%clk 00:31:03]}
{[%emt 00:00:04]} Qxf3 {[%clk 00:30:00]} {[%emt 00:00:13]} 44. Kh3 {[%clk
00:31:01]} {[%emt 00:00:32]} Qh1# {[%clk 00:30:21]} {[%emt 00:00:08]} 0-1

[Event "NJSK 2022 Jeugd B"]
[Site "Almelo, Netherlands"]
[Date "2022.05.04"]
[Round "4.1"]
[White "Van der Hagen, Loek"]
[Black "Slagboom, Leandro"]
[Result "1/2-1/2"]
[TimeControl "90min/40moves + 30min + 30sec/move"]
[WhiteElo "2071"]
[BlackElo "1997"]

1. e4 {[%clk 01:30:50]} {[%emt 00:00:10]} e6 {[%clk 01:30:54]} {[%emt
00:00:06]} 2. d4 {[%clk 01:30:55]} {[%emt 00:00:24]} d5 {[%clk 01:31:19]}
{[%emt 00:00:06]} 3. Nc3 {[%clk 01:30:04]} {[%emt 00:01:21]} Bb4 {[%clk
01:31:43]} {[%emt 00:00:06]} 4. e5 {[%clk 01:30:29]} {[%emt 00:00:05]} c5
{[%clk 01:32:08]} {[%emt 00:00:05]} 5. a3 {[%clk 01:30:55]} {[%emt 00:00:03]}
Bxc3+ {[%clk 01:32:34]} {[%emt 00:00:05]} 6. bxc3 {[%clk 01:31:21]} {[%emt
00:00:04]} Ne7 {[%clk 01:32:57]} {[%emt 00:00:06]} 7. Qg4 {[%clk 01:31:30]}
{[%emt 00:00:21]} Qc7 {[%clk 01:31:13]} {[%emt 00:02:14]} 8. Qxg7 {[%clk
01:31:48]} {[%emt 00:00:14]} Rg8 {[%clk 01:31:37]} {[%emt 00:00:05]} 9. Qxh7
{[%clk 01:32:13]} {[%emt 00:00:05]} cxd4 {[%clk 01:31:53]} {[%emt 00:00:14]} 10.
Ne2 {[%clk 01:32:29]} {[%emt 00:00:14]} Nbc6 {[%clk 01:32:06]} {[%emt
00:00:17]} 11. f4 {[%clk 01:32:43]} {[%emt 00:00:16]} dxc3 {[%clk 01:32:23]}
{[%emt 00:00:13]} 12. Qd3 {[%clk 01:32:57]} {[%emt 00:00:16]} d4 {[%clk
01:32:42]} {[%emt 00:00:11]} 13. Nxd4 {[%clk 01:32:33]} {[%emt 00:00:54]} Nxd4
{[%clk 01:32:17]} {[%emt 00:00:55]} 14. Qxd4 {[%clk 01:32:58]} {[%emt
00:00:04]} Bd7 {[%clk 01:32:42]} {[%emt 00:00:05]} 15. Rg1 {[%clk 01:27:37]}
{[%emt 00:05:52]} Nf5 {[%clk 01:33:02]} {[%emt 00:00:11]} 16. Qf2 {[%clk
01:27:39]} {[%emt 00:00:27]} Qc6 {[%clk 01:32:14]} {[%emt 00:01:18]} 17. Bd3
{[%clk 01:27:29]} {[%emt 00:00:39]} Qd5 {[%clk 01:31:13]} {[%emt 00:01:32]} 18.
Be3 {[%clk 01:17:25]} {[%emt 00:10:34]} Nxe3 {[%clk 01:29:13]} {[%emt
00:02:30]} 19. Qxe3 {[%clk 01:17:45]} {[%emt 00:00:10]} Rxg2 {[%clk 01:29:08]}
20. Rxg2 {[%clk 01:18:09]} {[%emt 00:00:42]} Qxg2 {[%clk 01:29:33]} {[%emt
00:00:04]} 21. Be4 {[%clk 01:18:20]} {[%emt 00:00:20]} Qxh2 {[%clk 01:29:00]}
{[%emt 00:01:02]} 22. O-O-O {[%clk 01:18:45]} {[%emt 00:00:05]} Bc6 {[%clk
01:28:14]} {[%emt 00:01:16]} 23. Bxc6+ {[%clk 01:19:07]} {[%emt 00:00:08]} bxc6
{[%clk 01:28:39]} {[%emt 00:00:05]} 24. Qd4 {[%clk 01:19:34]} {[%emt 00:00:03]}
a5 {[%clk 01:28:19]} {[%emt 00:00:50]} 25. Kb1 {[%clk 01:17:05]} {[%emt
00:03:00]} Qe2 {[%clk 01:22:41]} {[%emt 00:06:07]} 26. a4 {[%clk 01:10:39]}
{[%emt 00:06:56]} Qg2 {[%clk 01:21:21]} {[%emt 00:01:49]} 27. Rg1 {[%clk
01:06:36]} {[%emt 00:04:33]} Rb8+ {[%clk 01:21:37]} {[%emt 00:00:16]} 28. Ka1
{[%clk 01:03:42]} {[%emt 00:03:23]} Rb4 {[%clk 01:21:34]} {[%emt 00:00:33]} 29.
Qa7 {[%clk 01:03:34]} {[%emt 00:00:38]} Rxa4+ {[%clk 01:21:56]} {[%emt
00:00:08]} 30. Kb1 {[%clk 01:04:01]} {[%emt 00:00:03]} Rb4+ {[%clk 01:22:21]}
{[%emt 00:00:05]} 1/2-1/2